bitfinex/quotes_ETHUSD_20241019
["timestamp","ask_amount","ask_price","bid_price","bid_amount"]
[1729331068551,3.77975,2645.7,2645.3,1.59927575]
[1729331075151,3.77945,2645.9,2645.3,1.59927575]
[1729331075152,3.77959,2645.8,2645.3,1.59927575]
[1729331081613,3.77971,2645.7,2645.3,1.59927575]
[1729331083966,3.77957,2645.8,2645.3,1.59927575]
[1729331084372,3.77974,2645.7,2645.3,1.59927575]
[1729331088328,3.7796,2645.8,2645.3,1.59927575]
[1729331095094,3.77978,2645.7,2645.3,1.59927575]
[1729331098236,2.77706412,2646.1,2645.3,1.94063209]
[1729331098476,0.45766666,2646.3,2645.4,1.5765]
[1729331098644,0.45766666,2646.3,2645.6,1.5765]
[1729331099559,4.23654666,2646.3,2645.6,1.5765]
[1729331099731,3.77902,2646.2,2645.6,1.5765]
[1729331101096,3.77923,2646.1,2645.6,1.5765]
[1729331101557,3.7793,2646.0,2645.6,1.5765]
[1729331103285,0.94844921,2645.9,2645.6,1.5765]
[1729331103460,3.7793,2646.0,2645.6,1.5765]
[1729331103855,3.59552371,2645.9,2645.6,1.5765]
[1729331104708,2.98392287,2645.8,2645.6,1.5765]
[1729331105163,3.59552371,2645.9,2645.6,1.5765]
[1729331105366,3.77945,2645.9,2645.6,1.5765]
[1729331105566,3.77968,2645.8,2645.6,1.5765]
[1729331106109,3.77957,2645.8,2645.6,1.5765]
[1729331106477,3.75668766,2645.7,2645.6,1.5765]
[1729331106794,3.77957,2645.8,2645.6,1.5765]
[1729331114788,3.77971,2645.7,2645.3,1.5765]
[1729331115122,3.77957,2645.8,2645.3,6.07387377]
[1729331119014,3.77957,2645.8,2645.4,1.5529]
[1729331122660,3.77943,2645.9,2645.4,3.78005]
[1729331122831,3.77943,2645.9,2645.5,1.5529]
[1729331126143,3.77957,2645.8,2645.5,1.5529]
[1729331127688,3.77949,2645.9,2645.5,1.5529]
[1729331127890,3.7796,2645.8,2645.5,1.5529]
[1729331131685,7.55928,2645.8,2645.5,1.5529]
[1729331131884,3.7796,2645.8,2645.5,1.5529]
[1729331153830,3.77944,2645.9,2645.5,1.5529]
[1729331154175,3.77944,2645.9,2645.5,2.53593338]
[1729331154649,3.77958,2645.8,2645.5,2.53593338]
[1729331155258,6.55461955,2646.0,2645.6,1.5407]
[1729331155426,3.77938,2646.0,2645.6,1.5407]
[1729331155873,2.77523955,2646.2,2645.9,3.77941]
[1729331156074,4.82805894,2646.3,2646.1,1.5407]
[1729331156249,4.23652666,2646.3,2646.1,1.5407]
[1729331157713,3.779,2646.2,2646.1,1.5407]
[1729331161091,4.23653666,2646.3,2646.1,1.5407]
[1729331165912,3.779,2646.2,2646.1,1.5407]
[1729331166412,3.77914,2646.1,2645.9,1.6428]
[1729331167455,3.77905,2646.2,2645.9,1.6428]
[1729331168352,7.55818,2646.2,2645.9,1.6428]
[1729331168537,3.77905,2646.2,2645.9,1.6428]
[1729331170911,3.77905,2646.2,2645.9,2.185036]
[1729331171109,4.23656666,2646.3,2645.9,2.185036]
[1729331172053,0.45766666,2646.3,2646.0,1.6428]
[1729331175657,4.23652666,2646.3,2646.0,1.6428]
[1729331176775,0.45766666,2646.3,2646.0,2.2392536]
[1729331176931,0.45766666,2646.3,2646.1,1.6428]
[1729331185541,4.23654666,2646.3,2646.1,1.6428]
[1729331187680,0.45766666,2646.3,2646.1,1.6428]
[1729331189987,3.77873,2646.4,2646.1,1.6428]
[1729331211179,3.77862,2646.5,2646.1,1.6428]
[1729331211384,3.77862,2646.5,2646.2,1.5185]
[1729331212586,7.55731,2646.5,2646.2,1.5185]
[1729331212915,3.77875,2646.4,2646.2,1.5185]
[1729331213717,3.77871,2646.4,2646.2,1.5185]
[1729331216128,3.77871,2646.4,2646.0,1.5185]
[1729331221456,3.77871,2646.4,2646.0,2.048282]
[1729331229871,7.55731,2646.5,2646.0,5.827562]
[1729331231275,8.01148595,2646.5,2646.0,5.827562]
[1729331232282,3.77873,2646.4,2646.0,5.827562]
[1729331233591,8.01146595,2646.5,2646.0,5.827562]
[1729331234084,3.77872,2646.4,2646.0,5.827562]
[1729331236537,3.77872,2646.4,2646.0,4.309062]
[1729331236741,0.45417595,2646.5,2646.1,5.8649162]
[1729331237743,0.45417595,2646.5,2646.2,5.38043]
[1729331237980,0.45417595,2646.5,2646.3,5.38035]
[1729331238973,0.45417595,2646.5,2646.3,1.6015]
[1729331240886,0.45417595,2646.5,2646.4,1.6015]
[1729331241084,0.45417595,2646.5,2646.4,2.51742]
[1729331244479,0.45417595,2646.5,2646.4,6.29613]
[1729331258158,1.0015,2647.1,2646.4,0.91592]
[1729331258366,11.83887319,2647.3,2646.3,3.77883]
[1729331258367,4.36886319,2647.3,2646.7,5.3772]
[1729331258706,3.77757,2647.2,2646.7,9.1554]
[1729331258905,3.77757,2647.2,2646.7,5.3772]
[1729331259607,3.77772,2647.1,2646.7,1.599]
[1729331259912,3.77772,2647.1,2646.7,2.514591]
[1729331260812,3.77772,2647.1,2646.7,6.292871]
[1729331269098,3.77772,2647.1,2646.7,2.514591]
[1729331269305,3.77772,2647.1,2646.7,1.599]
[1729331271733,7.55551,2647.1,2646.7,1.599]
[1729331272052,3.77772,2647.1,2646.7,1.599]
[1729331282220,3.77772,2647.1,2646.7,5.37727]
[1729331291039,2.77234777,2647.5,2647.1,1.5129]
[1729331291222,6.54928777,2647.7,2647.3,1.5129]
[1729331291564,3.77707,2647.6,2647.3,1.5129]
[1729331292378,3.77694,2647.7,2647.3,1.5129]
[1729331293032,0.54955291,2647.8,2647.3,5.29026]
[1729331293230,0.54955291,2647.8,2647.4,3.77728]
[1729331293651,0.54955291,2647.8,2647.5,5.28997]
[1729331293816,0.54955291,2647.8,2647.6,3.77699]
[1729331294021,0.54955291,2647.8,2647.5,1.5129]
[1729331294936,0.54955291,2647.8,2647.5,5.29003]
[1729331295156,0.54955291,2647.8,2647.5,1.5129]
[1729331296678,0.54955291,2647.8,2647.5,5.28997]
[1729331297384,0.54955291,2647.8,2647.5,1.5129]
[1729331302640,0.54955291,2647.8,2647.5,2.041915]
[1729331309398,0.54955291,2647.8,2647.5,1.5129]
[1729331316512,1.55105291,2647.8,2647.3,1.6126]
[1729331316708,1.0015,2647.5,2647.1,5.39022]
[1729331317123,4.77866,2647.5,2647.1,5.39022]
[1729331318690,1.0015,2647.5,2647.1,9.16785]
[1729331318885,1.0015,2647.5,2647.1,6.307005]
[1729331319426,1.0015,2647.5,2647.1,2.529385]
[1729331319725,3.777,2647.6,2647.2,3.77756]
[1729331319928,4.32636291,2647.8,2647.3,1.5257]
[1729331320097,4.32636291,2647.8,2647.3,5.30299]
[1729331320494,0.54955291,2647.8,2647.4,3.77727]
[1729331320720,0.54955291,2647.8,2647.4,4.685312]
[1729331326432,0.54955291,2647.8,2647.4,3.77727]
[1729331326928,0.54955291,2647.8,2647.4,3.77719]
[1729331331191,4.77808,2647.9,2647.4,3.77719]
[1729331331395,4.77808,2647.9,2647.4,7.55437]
[1729331331835,3.77658,2647.9,2647.5,5.27833]
[1729331332913,3.77658,2647.9,2647.5,1.5012]
[1729331343342,3.77679,2647.8,2647.5,1.5012]
[1729331351948,3.77679,2647.8,2647.3,3.77736]
[1729331352286,4.77829,2647.8,2647.3,5.36946]
[1729331354493,3.77679,2647.8,2647.3,5.36946]
[1729331356755,3.77679,2647.8,2647.3,6.19794603]
[1729331358862,3.77679,2647.8,2647.4,1.6252]
[1729331362185,3.77679,2647.8,2647.4,5.40247]
[1729331365018,2.77571206,2647.9,2647.4,3.77727]
[1729331365187,3.77659,2647.9,2647.5,1.6252]
[1729331366597,3.77659,2647.9,2647.3,1.6252]
[1729331366799,7.55324,2647.9,2647.5,1.6252]
[1729331367109,3.77659,2647.9,2647.5,1.6252]
[1729331368535,3.77659,2647.9,2647.5,5.40229]
[1729331368847,3.77659,2647.9,2647.5,1.6252]
[1729331369409,6.552706,2647.9,2647.5,1.6252]
[1729331370018,3.77659,2647.9,2647.5,1.6252]
[1729331372735,3.77672,2647.8,2647.5,1.6252]
[1729331373336,3.77685,2647.8,2647.5,1.6252]
[1729331375032,3.77658,2647.9,2647.5,5.40233]
[1729331375231,3.77658,2647.9,2647.5,1.6252]
[1729331375232,6.55266938,2647.9,2647.5,1.6252]
[1729331376049,6.55266667,2647.9,2647.5,1.6252]
[1729331376265,3.77658,2647.9,2647.5,1.6252]
[1729331377079,6.55266667,2647.9,2647.5,1.6252]
[1729331378540,3.77658,2647.9,2647.5,1.6252]
[1729331378977,6.55266667,2647.9,2647.5,1.6252]
[1729331380345,10.32934667,2647.9,2647.5,1.6252]
[1729331380560,6.55266667,2647.9,2647.5,1.6252]
[1729331380761,10.32931667,2647.9,2647.5,1.6252]
[1729331380946,10.32935,2647.9,2647.5,1.6252]
[1729331384856,6.5527,2647.9,2647.5,1.6252]
[1729331385063,3.77673,2647.8,2647.5,1.6252]
[1729331391889,3.77673,2647.8,2647.5,1.4753]
[1729331405340,3.77672,2647.8,2647.5,1.4753]
[1729331417599,6.55226426,2647.9,2647.5,1.4753]
[1729331417908,3.77672,2647.8,2647.5,1.4753]
[1729331419266,3.77672,2647.8,2647.5,1.4707089]
[1729331438427,7.55352,2647.8,2647.5,1.4707089]
[1729331438594,3.77687,2647.7,2647.5,1.4707089]
[1729331439003,3.77744,2647.3,2646.8,5.44206]
[1729331439324,3.77761,2647.2,2646.8,1.664]
[1729331439707,3.77788,2647.0,2646.8,1.664]
[1729331440104,3.77772,2647.1,2646.8,1.664]
[1729331459019,3.77788,2647.0,2646.6,5.36462]
[1729331459305,3.77788,2647.0,2646.6,6.278935]
[1729331459463,4.93357,2647.2,2646.6,6.278935]
[1729331459663,3.77773,2647.1,2646.6,6.278935]
[1729331460904,1.156,2647.2,2646.6,1.5862]
[1729331461119,3.75679709,2646.8,2646.3,1.5862]
[1729331461314,7.53505709,2646.8,2646.3,5.36504]
[1729331462101,3.75679709,2646.8,2646.3,5.36504]
[1729331462310,3.75679709,2646.8,2646.4,0.914394]
[1729331463780,3.75679709,2646.8,2646.4,4.693094]
[1729331483797,4.934,2646.9,2646.4,4.693094]
[1729331484215,7.30858036,2646.9,2646.4,4.693094]
[1729331488148,3.77818,2646.8,2646.4,4.693094]
[1729331498361,6.15518852,2646.8,2646.4,4.693094]
[1729331499945,6.15490172,2646.8,2646.4,4.693094]
[1729331504278,2.37672172,2646.7,2646.4,4.693094]
[1729331509790,2.37914618,2646.7,2646.4,4.693094]
[1729331513492,2.37914618,2646.7,2646.4,0.914394]
[1729331514475,1.156,2646.6,2646.3,1.5862]
[1729331514658,1.156,2646.6,2646.1,5.28517]
[1729331514659,0.68055013,2646.5,2646.1,5.28517]
[1729331514959,4.93443,2646.6,2646.1,5.28517]
[1729331515598,8.71296,2646.6,2646.1,5.28517]
[1729331515772,4.93443,2646.6,2646.1,5.28517]
[1729331515967,4.93443,2646.6,2646.1,6.37338194]
[1729331516162,4.93443,2646.6,2646.1,6.37336194]
[1729331516479,4.93443,2646.6,2646.2,3.77899]
[1729331524130,4.93443,2646.6,2646.1,6.37336194]
[1729331524495,7.31152806,2646.6,2646.1,6.37336194]
[1729331525428,7.31152806,2646.6,2646.2,0.82283749]
[1729331527617,7.31118433,2646.6,2646.2,0.82283749]
[1729331528458,3.77857,2646.5,2645.9,3.47200938]
[1729331528670,7.31143433,2646.5,2645.9,3.47200938]
[1729331529163,7.31143433,2646.5,2645.9,1.6544]
[1729331529320,3.77892,2646.3,2645.9,1.6544]
[1729331529668,3.77892,2646.3,2645.9,2.57576]
[1729331529959,3.77904,2646.2,2645.9,1.6544]
[1729331530516,3.7576735,2646.2,2645.9,1.6544]
[1729331531357,3.77892,2646.3,2645.9,1.6544]
[1729331531543,7.55788,2646.3,2645.9,1.6544]
[1729331531760,3.77892,2646.3,2645.9,1.6544]
[1729331532334,3.77892,2646.3,2645.9,2.575766]
[1729331533150,3.77873,2646.4,2645.9,6.355186]
[1729331536509,3.77873,2646.4,2645.9,4.700786]
[1729331536701,3.77873,2646.4,2646.0,1.6544]
[1729331540522,4.93467,2646.5,2646.0,1.6544]
[1729331540523,3.77867,2646.5,2646.0,1.6544]
[1729331540727,3.77867,2646.5,2646.1,0.64307699]
[1729331541531,3.77867,2646.5,2646.1,4.42220699]
[1729331543734,0.49658076,2646.6,2646.3,3.77878]
[1729331544051,0.49658076,2646.6,2646.5,1.6212]
[1729331564722,0.49658076,2646.6,2646.5,5.39977]
[1729331568657,0.49658076,2646.6,2646.5,1.6212]
[1729331568961,0.49658076,2646.6,2646.5,5.39977]
[1729331569160,0.49658076,2646.6,2646.5,1.6212]
[1729331569679,0.49658076,2646.6,2646.5,5.39977]
[1729331569877,0.49658076,2646.6,2646.5,6.317611]
[1729331570487,0.49658076,2646.6,2646.5,2.539041]
[1729331570848,0.49658076,2646.6,2646.5,6.317611]
[1729331573789,0.49658076,2646.6,2646.5,2.539041]
[1729331575959,0.49658076,2646.6,2646.5,6.317611]
[1729331576986,0.49658076,2646.6,2646.5,2.539041]
[1729331579393,0.49658076,2646.6,2646.5,0.917841]
[1729331579570,0.49658076,2646.6,2646.4,3.77859]
[1729331580253,0.49658076,2646.6,2646.4,7.55724]
[1729331580850,0.49658076,2646.6,2646.4,3.77859]
[1729331581358,0.49658076,2646.6,2646.4,7.55722]
[1729331581770,0.49658076,2646.6,2646.4,3.77859]
[1729331582411,0.49658076,2646.6,2646.4,7.55722]
[1729331582703,0.49658076,2646.6,2646.4,7.55724]
[1729331582924,0.49658076,2646.6,2646.4,8.465714]
[1729331583779,0.49658076,2646.6,2646.4,4.687064]
[1729331587483,0.49658076,2646.6,2646.3,3.77877]
[1729331588379,0.49658076,2646.6,2646.2,3.77898]
[1729331588620,6.65104937,2646.6,2646.1,5.30654]
[1729331589483,6.65203121,2646.6,2646.1,9.08561]
[1729331589796,6.65203121,2646.6,2646.2,3.77895]
[1729331593889,1.156,2646.5,2646.2,3.77895]
[1729331595510,1.156,2646.5,2646.0,9.08595]
[1729331595708,7.31158045,2646.5,2646.0,5.30669]
[1729331595909,4.93458,2646.5,2646.0,5.30669]
[1729331596095,4.93458,2646.5,2646.0,9.08591]
[1729331596289,7.31168045,2646.5,2646.0,4.86954194]
[1729331596489,7.31168045,2646.5,2646.0,3.77919]
[1729331597103,7.31168045,2646.5,2645.9,3.77942]
[1729331598026,3.77878,2646.4,2645.9,3.77942]
[1729331602328,3.77878,2646.4,2646.0,3.77925]
[1729331609501,1.156,2646.5,2646.0,3.77925]
[1729331609908,1.156,2646.5,2646.0,5.36715]
[1729331609909,4.93465,2646.5,2646.0,5.36715]
[1729331610517,1.156,2646.5,2646.0,1.5879]
[1729331610718,1.156,2646.5,2646.1,3.77912]
[1729331611146,4.9346,2646.5,2646.1,3.77912]
[1729331611649,2.87055178,2646.6,2646.3,1.5879]
[1729331611874,0.49658076,2646.6,2646.3,5.36675]
[1729331614546,0.49658076,2646.6,2646.3,1.5879]
[1729331616454,2.87055178,2646.6,2646.3,1.5879]
[1729331617562,2.37397102,2646.6,2646.3,1.5879]
[1729331619671,3.77874,2646.4,2645.9,7.15284938]
[1729331619879,3.77874,2646.4,2645.9,8.24609432]
[1729331620637,4.02665257,2646.5,2645.9,8.24609432]
[1729331620943,4.02665257,2646.5,2645.9,6.42848494]
[1729331621149,3.77879,2646.4,2645.9,6.42848494]
[1729331621361,7.5576,2646.4,2646.0,0.82937831]
[1729331621672,3.77879,2646.4,2646.0,0.82937831]
[1729331629178,6.15392535,2646.4,2646.0,0.82937831]
[1729331630619,5.02149994,2646.4,2646.0,0.82937831]
[1729331630909,2.37513535,2646.4,2646.0,0.82937831]
[1729331631095,6.15392535,2646.4,2646.0,4.60863831]
[1729331633282,6.15544382,2646.4,2646.0,4.60863831]
[1729331638225,3.77879,2646.4,2646.0,4.60863831]
[1729331638522,6.15593113,2646.4,2646.0,3.77926]
[1729331638818,2.37714113,2646.4,2646.0,3.77926]
[1729331638994,6.15586113,2646.4,2646.0,3.77926]
[1729331640119,6.15592061,2646.4,2646.0,3.77926]
[1729331640281,6.15592061,2646.4,2645.9,2.64914494]
[1729331640479,6.15592061,2646.4,2645.9,5.33529]
[1729331640698,1.22337416,2646.3,2645.9,5.33529]
[1729331641938,3.77872,2646.4,2645.9,5.33529]
[1729331642330,3.77886,2646.3,2645.9,5.33529]
[1729331642526,7.55753,2646.4,2645.9,5.33529]
[1729331642698,3.77872,2646.4,2645.9,5.33529]
[1729331645099,3.77886,2646.3,2645.9,1.5559]
[1729331645417,3.77878,2646.4,2645.9,5.33531]
[1729331646747,2.37672617,2646.3,2645.9,5.33531]
[1729331648348,2.96817848,2646.3,2645.9,5.33531]
[1729331650320,2.96817848,2646.3,2645.9,1.5559]
[1729331650519,2.96817848,2646.3,2645.9,5.33529]
[1729331656566,2.96817848,2646.3,2645.9,6.42680514]
[1729331657649,0.59145231,2646.3,2645.9,6.42680514]
[1729331657856,2.96817848,2646.3,2645.9,6.42680514]
[1729331665679,2.96817848,2646.3,2645.9,6.42677514]
[1729331666375,2.66876362,2646.3,2645.9,6.42677514]
[1729331666675,0.59145231,2646.3,2645.9,6.42677514]
[1729331666982,0.59145231,2646.3,2645.9,6.17677514]
[1729331667364,0.59145231,2646.3,2645.9,5.08526]
[1729331672594,2.96851595,2646.3,2645.9,5.08526]
[1729331672961,2.37706364,2646.2,2645.9,5.08526]
[1729331676172,2.37711931,2646.2,2645.9,5.08526]
[1729331676852,6.15599931,2646.3,2645.9,5.08526]
[1729331677167,2.37711931,2646.2,2645.9,5.08526]
[1729331680478,6.15599931,2646.3,2645.9,5.08526]
[1729331680684,2.37711931,2646.2,2645.9,5.08526]
[1729331682701,3.78311931,2646.2,2645.7,5.5800514]
[1729331683006,2.37711931,2646.2,2645.9,5.36961]
[1729331686815,2.96857392,2646.2,2645.9,5.36961]
[1729331688924,2.96857392,2646.2,2646.0,1.5902]
[1729331690796,2.96927975,2646.2,2646.0,1.5902]
[1729331691039,2.37782514,2646.2,2646.0,1.5902]
[1729331692336,0.15067996,2646.1,2646.0,1.5902]
[1729331692552,3.77889,2646.3,2646.0,1.5902]
[1729331698320,2.37768699,2646.2,2646.0,1.5902]
[1729331700052,2.37768699,2646.2,2645.8,3.77956]
[1729331700218,3.77889,2646.3,2645.8,3.77956]
[1729331700550,7.55786,2646.3,2645.8,3.77956]
[1729331701109,1.406,2646.2,2645.8,3.77957]
[1729331701337,5.18501,2646.2,2645.7,5.3988]
[1729331701746,2.37758925,2646.1,2645.7,5.3988]
[1729331703560,2.37758925,2646.1,2645.8,3.77954]
[1729331703731,5.18501,2646.2,2645.8,3.77954]
[1729331704353,3.77901,2646.2,2645.8,4.697374]
[1729331706736,3.77901,2646.2,2645.8,3.77954]
[1729331708571,3.77886,2646.3,2645.8,3.77954]
[1729331708878,3.77886,2646.3,2645.9,5.39848]
[1729331711089,5.18473,2646.4,2645.9,5.39842]
[1729331711257,3.77873,2646.4,2646.0,3.77928]
[1729331712382,3.77873,2646.4,2645.9,9.17777]
[1729331712556,3.77873,2646.4,2645.9,5.39842]
[1729331713148,3.77873,2646.4,2646.0,3.77928]
[1729331713994,2.37817174,2646.2,2646.0,3.77928]
[1729331718184,3.77872,2646.4,2646.0,3.77928]
[1729331718990,2.37824813,2646.2,2646.0,3.77928]
[1729331721700,2.37824813,2646.2,2645.9,5.39851]
[1729331722907,2.37926229,2646.2,2645.9,5.39851]
[1729331724023,2.37926229,2646.2,2645.9,5.39852]
[1729331725322,2.37926229,2646.2,2645.9,1.6191]
[1729331725484,2.37926229,2646.2,2645.8,3.77949]
[1729331725914,2.37926229,2646.1,2645.8,3.77949]
[1729331726226,2.37926229,2646.2,2645.8,4.49734064]
[1729331726519,3.78526229,2646.1,2645.7,3.77967]
[1729331726722,3.7211645,2646.1,2645.7,3.77967]
[1729331727029,1.406,2646.1,2645.7,3.77967]
[1729331731633,5.18516,2646.1,2645.6,3.77976]
[1729331732133,1.406,2646.1,2645.7,3.77962]
[1729331732840,2.37785166,2646.0,2645.7,3.77962]
[1729331733339,3.78385166,2646.1,2645.7,3.77962]
[1729331737639,1.406,2646.1,2645.7,3.77962]
[1729331737833,3.78349829,2646.1,2645.7,3.77962]
[1729331738286,1.11e-06,2645.8,2645.7,3.77962]
[1729331738438,1.11e-06,2645.8,2645.7,4.693588]
[1729331739276,3.78349829,2646.1,2645.7,4.693588]
[1729331739477,3.78349829,2646.1,2645.7,3.77962]
[1729331740778,2.37749829,2646.0,2645.7,3.77962]
[1729331741079,1.406,2646.1,2645.7,3.77962]
[1729331741080,3.78349829,2646.1,2645.7,3.77962]
[1729331742786,3.78323036,2646.1,2645.7,3.77962]
[1729331743504,2.37723036,2646.0,2645.7,3.77962]
[1729331744412,3.78323036,2646.1,2645.7,3.77962]
[1729331745111,2.37723036,2646.0,2645.7,3.77962]
[1729331745516,2.37723036,2646.0,2645.6,3.77976]
[1729331745813,2.37723036,2646.0,2645.6,7.55952]
[1729331746008,7.56238036,2646.1,2645.6,3.77976]
[1729331746215,7.56238036,2646.1,2645.7,3.77971]
[1729331746378,2.37723036,2646.0,2645.7,3.77971]
[1729331747531,2.37723036,2646.0,2645.5,5.36029]
[1729331747532,3.77945,2645.9,2645.5,5.36029]
[1729331747703,6.15668036,2645.9,2645.5,5.36029]
[1729331747898,2.21107504,2645.8,2645.5,1.5803]
[1729331748100,3.77945,2645.9,2645.5,1.5803]
[1729331751544,4.37100837,2645.9,2645.5,1.5803]
[1729331752630,4.37100837,2645.9,2645.5,5.3603]
[1729331753908,6.74708077,2645.9,2645.5,5.3603]
[1729331755902,2.96763077,2645.9,2645.5,5.3603]
[1729331756106,0.59155837,2645.9,2645.5,5.3603]
[1729331757838,0.59155837,2645.9,2645.6,1.5154]
[1729331761967,6.15514085,2646.0,2645.6,1.5154]
[1729331767382,6.15514085,2646.0,2645.6,5.29525]
[1729331767581,6.15514085,2646.0,2645.6,1.5154]
[1729331768179,3.77937,2646.0,2645.6,1.5154]
[1729331768377,6.15571689,2646.0,2645.6,1.5154]
[1729331769272,6.15571689,2646.0,2645.6,3.77984]
[1729331769481,6.15571689,2646.0,2645.7,1.5383]
[1729331771287,2.37634689,2645.9,2645.7,1.5383]
[1729331775219,2.3772199,2645.9,2645.7,1.5383]
[1729331776363,2.3772199,2646.0,2645.7,5.849817]
[1729331776518,2.3772199,2646.0,2645.8,1.5383]
[1729331777446,3.77911,2646.2,2645.8,1.5383]
[1729331777447,6.1563899,2646.1,2645.8,1.5383]
[1729331777743,2.3772199,2646.0,2645.8,1.5383]
[1729331780052,3.77917,2646.1,2645.8,1.5383]
[1729331780260,2.37632872,2646.0,2645.8,1.5383]
[1729331784922,2.37649332,2646.0,2645.8,1.5383]
[1729331785447,6.15578332,2646.0,2645.8,1.5383]
[1729331787357,2.37649332,2645.9,2645.8,1.5383]
[1729331787925,3.77929,2646.0,2645.8,1.5383]
[1729331787926,6.15578332,2646.0,2645.8,1.5383]
[1729331788969,2.37649332,2645.9,2645.8,1.5383]
[1729331789831,2.37678313,2645.9,2645.8,1.5383]
[1729331792385,6.15607313,2646.0,2645.8,1.5383]
[1729331792686,2.37678313,2645.9,2645.8,1.5383]
[1729331793796,2.37678313,2646.0,2645.8,1.5383]
[1729331794092,2.37678313,2646.0,2645.9,1.5649]
[1729331794451,2.37678313,2646.1,2645.9,1.5649]
[1729331794652,2.37678313,2646.0,2645.9,1.5649]
[1729331796053,2.37678313,2646.1,2645.9,1.5649]
[1729331796502,2.37678313,2646.1,2645.9,5.34433]
[1729331796653,2.37678313,2646.1,2645.9,6.3477092]
[1729331799667,2.37643138,2646.1,2645.9,6.3477092]
[1729331802596,2.37643138,2646.1,2646.0,1.6089]
[1729331803717,2.37643138,2646.2,2646.0,1.6089]
[1729331803877,2.37643138,2646.1,2646.0,1.6089]
[1729331804074,2.37643138,2646.2,2646.0,2.24807092]
[1729331804614,2.37616487,2646.2,2646.0,2.24807092]
[1729331805275,2.37616487,2646.2,2646.0,6.02733092]
[1729331806077,2.37616487,2646.2,2646.0,2.24807092]
[1729331806800,2.37616487,2646.2,2646.0,6.02729092]
[1729331807016,2.37616487,2646.2,2646.1,1.08100101]
[1729331807312,2.37616487,2646.3,2646.1,1.08100101]
[1729331808380,2.37616487,2646.2,2646.1,1.08100101]
[1729331808586,2.37616487,2646.3,2646.1,1.08100101]
[1729331808786,2.37616487,2646.3,2646.2,0.4010001]
[1729331809087,2.37584386,2646.3,2646.2,0.4010001]
[1729331809313,2.37572529,2646.3,2646.2,0.4010001]
[1729331809727,0.49662504,2646.4,2646.2,0.4010001]
[1729331810291,2.37564208,2646.3,2646.2,0.4010001]
[1729331812185,2.37564208,2646.3,2646.2,2.0099001]
[1729331812786,2.87226712,2646.4,2646.2,5.7889001]
[1729331812991,2.87226712,2646.4,2646.3,6.34456301]
[1729331813184,0.49662504,2646.4,2646.3,6.34456301]
[1729331814323,0.49662504,2646.4,2646.3,2.56570301]
[1729331816812,2.8720546,2646.4,2646.2,0.4010001]
[1729331817936,0.49662504,2646.4,2646.2,0.4010001]
[1729331818349,0.49662504,2646.4,2646.3,1.5408]
[1729331819707,2.47529652,2646.4,2646.3,1.5408]
[1729331820019,0.49662504,2646.4,2646.3,1.5408]
[1729331820205,0.49662504,2646.4,2646.3,2.49078301]
[1729331821144,2.47534768,2646.4,2646.3,6.26964301]
[1729331822429,1.978441,2646.5,2646.4,5.31942]
[1729331822631,1.978441,2646.6,2646.5,5.31937]
[1729331822941,1.978441,2646.7,2646.6,3.77843]
[1729331823145,1.978441,2646.7,2646.6,5.31923]
[1729331823346,1.978441,2646.8,2646.6,5.31923]
[1729331823509,2.37412921,2647.0,2646.6,5.31923]
[1729331823510,1.978441,2646.7,2646.6,5.31923]
[1729331823705,1.978441,2646.7,2646.6,6.229008]
[1729331824303,1.978441,2646.8,2646.6,6.229008]
[1729331826048,1.978441,2646.9,2646.7,3.77828]
[1729331826209,1.978441,2647.0,2646.7,3.77828]
[1729331826407,1.978441,2646.9,2646.8,0.6228858]
[1729331827219,1.9762511,2647.0,2646.8,0.6228858]
[1729331827703,1.9762511,2646.9,2646.8,0.6228858]
[1729331827903,1.9762511,2646.9,2646.6,3.77834]
[1729331828515,1.97603034,2646.9,2646.6,3.77834]
[1729331828710,1.97603034,2646.9,2646.4,7.55726]
[1729331828914,1.97603034,2646.9,2646.5,3.77857]
[1729331830120,1.97603034,2646.9,2646.5,3.77856]
[1729331830323,1.97603034,2646.9,2646.5,4.534279]
[1729331830551,1.97603034,2646.9,2646.5,0.755719]
[1729331830846,3.49773034,2646.9,2646.5,0.755719]
[1729331831047,3.49773034,2646.9,2646.4,7.55725]
[1729331831248,1.97603034,2646.8,2646.4,3.77862]
[1729331831614,7.27575034,2646.9,2646.4,3.77862]
[1729331831816,1.97603034,2646.8,2646.4,3.77862]
[1729331832037,3.49773034,2646.9,2646.4,4.688442]
[1729331832348,3.49716476,2646.9,2646.4,4.688442]
[1729331832506,7.27520476,2646.9,2646.4,4.688442]
[1729331832710,1.97546476,2646.8,2646.4,4.688442]
[1729331832945,3.49716476,2646.9,2646.4,4.688442]
[1729331833145,1.97546476,2646.8,2646.4,4.688442]
[1729331833506,3.49716476,2646.9,2646.4,8.467082]
[1729331833712,1.97546476,2646.8,2646.4,8.467082]
[1729331834149,3.49716476,2646.9,2646.4,8.467082]
[1729331834350,3.49716476,2646.9,2646.4,4.688442]
[1729331834654,3.49716476,2646.9,2646.4,8.467092]
[1729331835036,1.5217,2646.9,2646.4,8.467092]
[1729331835333,3.49716476,2646.9,2646.4,8.467092]
[1729331835520,7.27519476,2646.9,2646.4,3.77861]
[1729331836066,3.49716476,2646.9,2646.4,3.77861]
[1729331836915,1.97531932,2646.8,2646.4,3.77861]
[1729331837113,3.49701932,2646.9,2646.4,3.77861]
[1729331837358,1.97531932,2646.8,2646.4,3.77861]
[1729331837560,3.49701932,2646.9,2646.4,3.77861]
[1729331837766,3.49701932,2646.9,2646.4,7.55723]
[1729331838128,3.49701932,2646.9,2646.4,3.77861]
[1729331838322,3.49701932,2646.9,2646.5,3.77856]
[1729331838638,3.49701932,2646.9,2646.4,7.55724]
[1729331838873,1.97531932,2646.9,2646.5,1.6057]
[1729331840461,1.97531932,2646.9,2646.5,5.38425]
[1729331840936,5.75318932,2647.0,2646.5,5.38425]
[1729331842268,5.75318932,2647.0,2646.6,1.6057]
[1729331843062,1.97531932,2647.0,2646.7,1.6057]
[1729331844053,1.97531932,2647.0,2646.7,5.3839]
[1729331844257,1.97531932,2647.1,2646.8,1.6057]